Cogmind - Beta 15 @@@ ROGUE MODE // 2025.07.27 @ 03:29:38 Player: rei Result: Destroyed by C-17 Slicer with Blade Saw Performance ------------- Evolutions (2) 1000 Regions Visited (4) 800 Robots Destroyed (13) 65 Value Destroyed (198) 198 Prototype IDs (0) 0 Alien Tech Used (0) 0 Bonus (200) 200 TOTAL SCORE: 2263 Bonus ------- Pacifist 200 Cogmind --------- Core Integrity 0/550 Matter 206/300 Energy 100/100 System Corruption 7% Temperature Cool (0) Movement Core (50) Location -8/Materials Parts ------- > --- POWER (2) -------- (None) > --- PROPULSION (3) --- (None) > --- UTILITY (4) ------ (None) > --- WEAPON (2) ------- (None) > --- INVENTORY (5) ---- ECM Suite Peak State ------------ > --- POWER ------------ Light Ion Engine > --- PROPULSION ------- Flight Unit Flight Unit Flight Unit > --- UTILITY ---------- Machine Analyzer Sensor Array Improved Targeting Computer > --- WEAPON ----------- Pulse Rifle Minigun > --- INVENTORY -------- ECM Suite Heavy Hammer [Rating: 16] Favorites ----------- Power Light Ion Engine Engine Light Ion Engine Propulsion Compact Wheel Wheel Compact Wheel Hover Unit Hover Unit Flight Unit Flight Unit Utility Sensor Array Device Sensor Array Processor Improved Targeting Computer Weapon Pulse Rifle Energy Gun Pulse Rifle Energy Cannon Heavy Particle Cannon Ballistic Gun Minigun Launcher EMP Blaster Impact Weapon Heavy Hammer Build | -11 -10 -9 -9 -8 ------- Run | Yrd Mat Mat Min Mat Slots Evolved 4 | . . 2 . 2 Power 1 | . . . . 1 Propulsion 1 | . . . . 1 Utility 2 | . . 2 . . Weapon . | . . . . . Parts Attached 22 | 4 3 5 . 10 Power 3 | 1 . . . 2 Engine 3 | 1 . . . 2 Core . | . . . . . Reactor . | . . . . . Propulsion 6 | 2 . 1 . 3 Treads . | . . . . . Leg . | . . . . . Wheel 2 | 2 . . . . Hover 1 | . . 1 . . Flight 3 | . . . . 3 Utility 6 | . 3 1 . 2 Device 4 | . 3 . . 1 Storage . | . . . . . Processor 2 | . . 1 . 1 Hackware . | . . . . . Protection . | . . . . . Artifact . | . . . . . Weapon 7 | 1 . 3 . 3 Energy Gun 3 | 1 . 1 . 1 Energy Cannon 1 | . . . . 1 Ballistic Gun 1 | . . . . 1 Ballistic Cannon . | . . . . . Launcher 1 | . . 1 . . Special Weapon . | . . . . . Impact Weapon 1 | . . 1 . . Slashing Weapon . | . . . . . Piercing Weapon . | . . . . . Special Melee Weapon . | . . . . . Unidentified Prototypes . | . . . . . Parts Lost 10 | . . 2 . 8 Power 2 | . . 1 . 1 Propulsion 3 | . . . . 3 Utility 3 | . . 1 . 2 Weapon 2 | . . . . 2 Highest Loss Streak 6 | . . 1 . 6 To Critical Strikes . | . . . . . Average Backups 1 | . 1 1 2 2 Power . | . . . . . Propulsion . | . . . . . Utility . | . . . 1 1 Weapon 1 | . 1 . 1 1 Tool/Special . | . . . . . Unused Backups . | . . . . . Power . | . . . . . Propulsion . | . . . . . Utility . | . . . . . Weapon . | . . . . . Tool/Special . | . . . . . Average Slot Usage (%) 59 | . 78 77 44 46 Engine 5 | . 14 8 . 2 Wheel 7 | . 28 13 . . Hover 2 | . . 3 11 2 Flight 3 | . . . . 6 Device 15 | . 21 24 11 9 Processor 11 | . . 9 11 15 Energy Gun 9 | . 14 14 . 5 Ballistic Gun 1 | . . . . 2 Launcher 1 | . . 2 11 . Peak Build Rating 16 | 4 6 10 6 16 Average Rating 8 | 3 5 8 6 10 On Entrance 4 | . 4 6 6 6 Naked Turns 25 | . . . . 25 Heaviest Build 11 | 5 8 10 5 11 Greatest Support 32 | 32 32 32 6 12 Greatest Overweight (x) 2 | . . 1 . 2 Average Overweight (x) . | . . . . . Largest Inventory Capacity 5 | 5 5 5 5 5 Average Capacity 5 | 5 5 5 5 5 Most Carried 4 | 2 2 2 2 4 Average Carried 1 | . 1 1 2 2 Final Capacity 5 | 5 5 5 5 5 Final Carried 2 | 1 2 2 2 1 Class Distribution -------------------- 87% | Mutant 12% | Scavenger-Mutant Dominant Class ---------------- Mutant | -10/Materials Mutant | -9/Materials Mutant | -9/Mines Mutant | -8/Materials Resources | -11 -10 -9 -9 -8 ----------- Run | Yrd Mat Mat Min Mat Matter Collected 426 | 68 . 55 . 303 Remotely . | . . . . . Salvage Created 425 | . . 137 . 288 Parts 24 | . . 5 . 19 Haulers Intercepted . | . . . . . Recyclers Shooed . | . . . . . Parts Field Recycled . | . . . . . Retrieved Matter . | . . . . . Parts Self-Destructed . | . . . . . Prevented . | . . . . . Kills | -11 -10 -9 -9 -8 ------- Run | Yrd Mat Mat Min Mat Combat Hostiles Destroyed 6 | . . 1 . 5 Guns 5 | . . 1 . 4 Classes Destroyed 7 | . . 2 . 5 Worker 2 | . . . . 2 Builder 2 | . . . . 2 Tunneler 1 | . . . . 1 Recycler 2 | . . 1 . 1 Swarmer 3 | . . . . 3 Grunt 1 | . . . . 1 Sentry 2 | . . 1 . 1 Best Kill Streak 7 | . . 1 . 7 Combat Bots Only 3 | . . 1 . 3 Max Kills in Single Turn 2 | . . 1 . 2 Gunslinging . | . . . . . Exploded . | . . . . . Melee . | . . . . . Uniques/NPCs Destroyed . | . . . . . Combat | -11 -10 -9 -9 -8 -------- Run | Yrd Mat Mat Min Mat Hostile Shots Fired 126 | . . 22 4 100 Missed 42 | . . 5 1 36 Hits 84 | . . 17 3 64 Melee 13 | . . . . 13 Projectile 71 | . . 17 3 51 AOE 4 | . . . . 4 Critical Strikes 9 | . . 3 . 6 Damage Taken 1418 | . . 292 18 1108 Core 659 | . . 87 6 566 Absorbed by Shields . | . . . . . Core Remaining (%) 92 | 100 100 . 76 . Volleys Fired 56 | . . 12 1 43 Largest 2 | . . 2 1 2 Hottest 96 | . . 90 33 96 Shots Fired 77 | . . 20 1 56 Gun 70 | . . 16 . 54 Cannon 1 | . . . . 1 Launcher 6 | . . 4 1 1 Special . | . . . . . Kinetic 21 | . . . . 21 Thermal 50 | . . 16 . 34 Explosive . | . . . . . Electromagnetic 6 | . . 4 1 1 Robot Hit Streak 14 | . . 14 . 6 Robot Miss Streak 4 | . . 1 1 4 Penetration Max . | . . . . . Secondary Targets 1 | . . . . 1 Max Gunslinging Chain 1 | . . . . 1 Shots Hit Robots 49 | . . 17 . 32 Core Hits 19 | . . 4 . 15 Critical Kills . | . . . . . Critical Parts Destroyed 1 | . . . . 1 Critical Strikes 1 | . . . . 1 Smash 1 | . . . . 1 Melee Attacks 3 | . . . . 3 Impact 3 | . . . . 3 Slashing . | . . . . . Piercing . | . . . . . Sneak Attacks . | . . . . . Combat Hostiles . | . . . . . Follow-up Attacks . | . . . . . Damage Inflicted 1032 | . . 300 17 715 Guns 770 | . . 162 . 608 Cannons 25 | . . . . 25 Explosions 155 | . . 138 17 . Melee 47 | . . . . 47 Ramming 35 | . . . . 35 Kinetic 225 | . . . . 225 Thermal 608 | . . 200 . 408 Explosive . | . . . . . Electromagnetic 117 | . . 100 17 . Impact 47 | . . . . 47 Slashing . | . . . . . Piercing . | . . . . . Highest Corruption 7 | . . . . 7 Average Corruption 6 | . . . . 6 Corruption Purged . | . . . . . Corruption Blocked . | . . . . . Effects 1 | . . . . 1 Data Loss (minor) 1 | . . . . 1 Overload Shots . | . . . . . Overflow Damage 48 | . . 1 . 47 Projectiles . | . . . . . Explosions 1 | . . 1 . . Melee 47 | . . . . 47 Knockbacks . | . . . . . Impact . | . . . . . Kinetic . | . . . . . Secondary . | . . . . . Self-Inflicted Damage 60 | . . 44 . 16 Shots 2 | . . 2 . . Rammed 10 | . . . . 10 Targets Rammed 10 | . . . . 10 Kicked . | . . . . . Crushed . | . . . . . Highest Temperature 276 | . . 276 . 210 Average Temperature 87 | . . 136 . 65 Received Heat Transfer 213 | . . 123 . 90 Effects 1 | . . . . 1 Interference 1 | . . . . 1 Siege Activations . | . . . . . Martial Activations . | . . . . . Shielding Activations . | . . . . . Robots Disrupted . | . . . . . Combat Hostiles . | . . . . . Robots Corrupted . | . . . . . Combat Hostiles . | . . . . . Parts Fried . | . . . . . Impact Corruptions 1 | . . . . 1 Robots Melted 1 | . . . . 1 Combat Hostiles 1 | . . . . 1 Parts Melted 5 | . . 2 . 3 Heat Transferred 1273 | . . 422 . 851 Parts Sabotaged . | . . . . . Parts Stolen . | . . . . . Parts Stripped . | . . . . . Power Chain Reactions 1 | . . 1 . . Alert | -11 -10 -9 -9 -8 ------- Run | Yrd Mat Mat Min Mat Maximum Alert Level . | . . . . . Low Security (%) 100 | 100 100 100 100 100 Level 1 . | . . . . . Level 2 . | . . . . . Level 3 . | . . . . . Level 4 . | . . . . . Level 5 . | . . . . . High Security . | . . . . . Max Security . | . . . . . Peak Influence 75 | . . 30 . 75 Initial . | . . . . . Average 15 | . . 4 . 26 Influence Increases 284 | . . 53 . 231 Destroy 0b10 Robot/C 120 | . . 20 . 100 Destroy 0b10 Robot/NC 35 | . . 5 . 30 Destroy Leader 20 | . . 10 . 10 Destroy Structure 4 | . . 3 . 1 Partial Spotted 45 | . . . . 45 Lose Combat Pursuer 60 | . . 15 . 45 Influence Decreases 249 | . . 53 . 196 Time Decay 185 | . . 45 . 140 Lost Part 64 | . . 8 . 56 Squads Dispatched 2 | . . 1 . 1 Investigation . | . . . . . Extermination . | . . . . . Reinforcement 2 | . . 1 . 1 Assault . | . . . . . Garrison . | . . . . . Intercept . | . . . . . Searches Triggered . | . . . . . Construction Impeded . | . . . . . Haulers Reinforced . | . . . . . Active Scanning Responses . | . . . . . Cargo Convoy Interrupts . | . . . . . Stealth | -11 -10 -9 -9 -8 --------- Run | Yrd Mat Mat Min Mat Distress Signals 2 | . . 1 . 1 Communications Jammed . | . . . . . Distress Signals . | . . . . . Times Spotted 22 | . . 6 3 13 Peak Tracking Total 5 | . . 5 4 5 Tactical Retreats 2 | . . 1 . 1 Traps | -11 -10 -9 -9 -8 ------- Run | Yrd Mat Mat Min Mat Traps Triggered 1 | . . . . 1 Indirectly . | . . . . . Trap Hack Attempts . | . . . . . Triggered . | . . . . . Disarmed . | . . . . . Reprogrammed . | . . . . . Reused . | . . . . . Traps Extracted . | . . . . . Installed . | . . . . . Triggered . | . . . . . Machines | -11 -10 -9 -9 -8 ---------- Run | Yrd Mat Mat Min Mat Machines Disabled . | . . . . . Max in Single Turn . | . . . . . Machines Repaired . | . . . . . Machines Dismantled . | . . . . . Machines Sabotaged . | . . . . . Overloaded Fab Kills . | . . . . . Hacking | -11 -10 -9 -9 -8 --------- Run | Yrd Mat Mat Min Mat Machines Accessed 1 | . . 1 . . Terminals 1 | . . 1 . . Fabricators . | . . . . . Repair Stations . | . . . . . Recycling Units . | . . . . . Scanalyzers . | . . . . . Garrison Access . | . . . . . Total Hacks 2 | . . 2 . . Successful 2 | . . 2 . . Failed . | . . . . . Catastrophic . | . . . . . Database Lockouts . | . . . . . Manual . | . . . . . Terminals 2 | . . 2 . . Fabricators . | . . . . . Repair Stations . | . . . . . Recycling Units . | . . . . . Scanalyzers . | . . . . . Garrison Access . | . . . . . Terminal Hacks 2 | . . 2 . . Record 1 | . . 1 . . Alert Level 1 | . . 1 . . Fabricator Hacks . | . . . . . Repair Station Hacks . | . . . . . Recycling Unit Hacks . | . . . . . Scanalyzer . | . . . . . Garrison Access Hacks . | . . . . . Unauthorized Hacks . | . . . . . Terminals . | . . . . . Fabricators . | . . . . . Repair Stations . | . . . . . Recycling Units . | . . . . . Scanalyzers . | . . . . . Garrison Access . | . . . . . Data Cores Recovered . | . . . . . Used . | . . . . . Hacking Detections . | . . . . . Full Trace Events . | . . . . . Feedback Events . | . . . . . Feedback Blocked . | . . . . . Robot Schematics Acquired . | . . . . . Robots Built . | . . . . . Authchips . | . . . . . Time . | . . . . . Total Robot Build Rating . | . . . . . Part Schematics Acquired . | . . . . . Parts Built . | . . . . . Authchips . | . . . . . Time . | . . . . . Total Part Build Rating . | . . . . . Parts Repaired . | . . . . . Time . | . . . . . Parts Recycled . | . . . . . Recycled Matter . | . . . . . Retrieved Matter . | . . . . . Retrieved Components . | . . . . . Parts Scanalyzed . | . . . . . Part Schematics Acquired . | . . . . . Parts Damaged . | . . . . . Bothacking | -11 -10 -9 -9 -8 ------------ Run | Yrd Mat Mat Min Mat Used RIF Installer . | . . . . . Robots Hacked . | . . . . . Non-combat . | . . . . . Combat . | . . . . . Robot Hacks Applied . | . . . . . Relay Couplers Released . | . . . . . Fabnet Peak Effective % . | . . . . . Robots Rewired . | . . . . . Allies Hacked . | . . . . . Hacks Repelled . | . . . . . Allies | -11 -10 -9 -9 -8 -------- Run | Yrd Mat Mat Min Mat Total Allies . | . . . . . Largest Group . | . . . . . Highest-Rated Group . | . . . . . Highest-Rated Ally . | . . . . . Total Orders . | . . . . . Ally Attacks . | . . . . . Total Damage . | . . . . . Kills . | . . . . . Allies Corrupted . | . . . . . Allies Melted . | . . . . . Intel | -11 -10 -9 -9 -8 ------- Run | Yrd Mat Mat Min Mat Active Infowar (turns) 629 | . 67 200 15 347 Sensors 620 | . 67 200 15 338 Machine Analysis 314 | . . . . 314 ECM 180 | . 45 135 . . Robot Analysis Total . | . . . . . Derelict Logs Recovered . | . . . . . Drone Launches . | . . . . . Drone Recoveries . | . . . . . Exploration | -11 -10 -9 -9 -8 ------------- Run | Yrd Mat Mat Min Mat Turns Passed 704 | 32 77 200 15 380 Spaces Moved 604 | 27 71 186 21 299 Core 89 | 6 . . . 83 Treads . | . . . . . Legs . | . . . . . Wheels 190 | 21 71 98 . . Hover 199 | . . 88 21 90 Flight 126 | . . . . 126 Fastest Speed 34 | 50 100 60 60 34 Average Speed 73 | 88 100 81 60 61 Slowest Speed 200 | 100 100 120 60 200 Overloaded Moves . | . . . . . Propulsion Burnouts . | . . . . . Robots Hopped . | . . . . . Potential Cave-ins . | . . . . . Cave-ins Triggered . | . . . . . Exploration Rate (%) 18 | 4 18 25 9 38 Regions Visited 4 Branch Regions 1 Pre-discovered Areas . | . . . . . Known Exits Taken . | . . . . . Unknown Exits Taken 4 | 1 1 1 1 . Scrap Searched . | . . . . . Spaces Dug . | . . . . . Terrain Destroyed 3 | . . 3 . . Melee . | . . . . . Projectile . | . . . . . AOE 3 | . . 3 . . Terrain Rammed . | . . . . . Walls Destroyed . | . . . . . Machines Disabled . | . . . . . Actions | -11 -10 -9 -9 -8 --------- Run | Yrd Mat Mat Min Mat Total 789 | 35 76 218 21 439 Wait 52 | . . . . 52 Move 600 | 26 70 185 20 299 Hop . | . . . . . Pick Up 25 | 5 3 6 . 11 Fast Attach . | . . . . . Attach 27 | 4 2 7 . 14 Detach 4 | . . 2 . 2 Swap 3 | . 1 . . 2 Drop 9 | . . 6 . 3 Fire 56 | . . 12 1 43 Melee 3 | . . . . 3 Ram 10 | . . . . 10 Kick . | . . . . . Crush . | . . . . . Escape Stasis . | . . . . . Rewire . | . . . . . Trap . | . . . . . Miscellaneous . | . . . . . Route ------- -11/Scrapyard -10/Materials -9/Materials -9/Mines -8/Materials History --------- Turn | Location | Event 2 | -11/Scrapyard | Discovered new exit (range 16) 33 | -11/Scrapyard | Entered Materials 95 | -10/Materials | Discovered new exit (range 16) 110 | -10/Materials | Entered another Materials area 110 | -9/Materials | Evolved 2 slots: Utility x2 306 | -9/Materials | Discovered new exit (range 8) 310 | -9/Materials | Entered Mines 312 | -9/Mines | Build established: Mutant 314 | -9/Mines | Discovered new exit (range 14) 325 | -9/Mines | Entered Materials 325 | -8/Materials | Evolved 2 slots: Power x1, Propulsion x1 671 | -8/Materials | Core integrity fell below 50% 689 | -8/Materials | Core integrity fell below 20% 703 | -8/Materials | Lost 6 parts (1p2n2u1w) 705 | -8/Materials | Destroyed by C-17 Slicer with Blade Saw Last Messages --------------- Critical hit (Blast). U-05 Engineer lays Concrete. Penetrated by Slug. Hvy. Particle Cannon destroyed. Machine Analyzer severed. Imp. Targeting Computer severed. System corrupted: Component data lost. C-17 Slicer suffers critical hit (Smash). Destroyed Lgt. Nuclear Core. C-17 Slicer system corrupted by crushing effect. Hvy. Hammer severed. Slammed into C-17 Slicer. K-01 Serf collects debris. Slammed into C-17 Slicer. Triggered Shock Trap. The floor emits a surge of raw power. System corrupted (+1). Acquired Hvy. Hammer. Hvy. Hammer severed. Slammed into C-17 Slicer. Map ----- +----------------------------------------------------+ | ???????????????????### ###?######?# #### ## ! # | | ???????????????????# #?# # # | | ???????????????????# #?# # # | | ???????????????????+ T #?# """ + """ | | ???????????????????# #?# """ # """ [% | | ???????????????????? ??# """ # """ | | ????????????????????# #??#] ?# ### | | ????????????????????# #??######?# #?# | | ????????????????????# ########### """ #?# ## | | ????????????????????# """ ## #? | | ????????????######?## #### """ ## #? | | ????????????# !# #### ## #? | | ????????????#""" # # ##+?? | | ????????????#""" + ###"T"# ## ?? | | ????????????#""" # #?##### ## ?? | | ??????????""# # #?????# ##??? | | ??????????T"# ?# ######## #?????# #???? | | ??????????""######?# #??????? #?????# #???? | | ???????????????##### #????????#?????# #???? | | ???????? #??????????????# #???? | | ???????? ######## #??????????????? ???? | | ?????????????????????# ##??????????????????????? | | ?????????????????????# C/??????????????????????? | | ?????????????????????#### #??????????????????????? | | ????????????????????????# #??????????????????????? | | ????????????????????????#@#??????????????????????? | | ????????????????????????#c#??????????????????????? | | ????????????????????????#c#??????????????????????? | | ????????????????????????# ##+#???????????????????? | | ????????????????????????# #???????????????????? | | ????????????????????????# #???????????????????? | | ????????????????????????# #???????????????????? | | ????????????????????????# #???????????????????? | | ???????????????????????## ##+#####???????????????? | | ???????????????????????/ # #???????????????? | | ?????????????????????? ## # =#???????????????? | | ????????????????????? ??# # """ #???????????????? | | ???????????????????? ???# + """ #???????????????? | | ??????????????????? ????# # """ #???????????????? | | ????????????????##+###### # #???????????????? | | ????????????????# % / ########???????????????? | | ????????????????# "######??????????????????????? | | ?????????? ?????# % ###########??????????????????? | | ????"""?""" """?#= " #??????????????????? | | ????"""?""" """?#%| # #??????????????????? | | ????"""?""" """ #! #[ = """ #??????????????????? | | ?????????##/#### = """ ???????????????????? | | ????????## """ ???????????????????? | | ????????+ T" """ #??????????????????? | | ????????## """ ??????????????????? | +----------------------------------------------------+ Best States ------------- Heat Dissipation 45 Energy Generation 10 Energy Capacity 125 Matter Stores 206 Matter Capacity 300 Sight Range 16 Robot Scan Range 14 Terrain Scan Density 10 ECM Strength 1 Evasion (%) 63 Targeting Accuracy 6 Item Schematics ----------------- None Robot Schematics ------------------ None Fabricated ------------ Nothing Repaired ---------- Nothing Alien Tech Used ----------------- None Achievements -------------- None Challenges ------------ None Game ------ Seed BiomechanicalRiotDerivative Manual? 0 Play Time 00:16:21 Cumulative 22.0 hours Start 2025.07.27 @ 03:16:27 End 2025.07.27 @ 03:29:38 Sessions 1 Manual Loads 0 Difficulty Rogue Special Mode None Game No. 28 Rogue 1 Adventurer 27 Explorer 0 Win Type - Total 0 Types 0/0/0/0/0/0/0/0/0/0 Lore% 10 Gallery% 26 Achievement% 27 Wizard Run 0 Options --------- Layout 1 ASCII 0 Keyboard 0 Movement Mouse Keybinds 0 Fullscreen 1 Font 24/Smallcaps Map View 50x35 Zoom Use 0% Tactical HUD 0 Map Filters NONE Filters NONE Steam 1 RUN: 92c89e5b-e953-4159-9bcd-503ac666d13a